fUSD/lending_fUSD_20250923
["ID","MTS","AMOUNT","RATE_DAILY","PERIOD"]
[387147146,1758592253594,-468.83,0.00019999,2]
[387147147,1758592253604,-6386.72,0.00019999,2]
[387147148,1758592253614,-400.0,0.00019999,2]
[387147149,1758592253623,-520.38,0.00019999,2]
[387147150,1758592253633,-400.0,0.00019999,2]
[387147151,1758592253643,-571.99,0.00019999,2]
[387147152,1758592253656,-271.90955701,0.00019999,2]
[387147153,1758592254076,-410.35044299,0.00019999,2]
[387147154,1758592254088,-739.5336827,0.00019999,2]
[387147155,1758592254101,-5.2563173,0.00019999,2]
[387147156,1758592254112,-400.0,0.00019999,2]
[387147157,1758592254121,-500.0,0.00019999,2]
[387147158,1758592254131,-500.0,0.00019999,2]
[387147159,1758592254140,-134.62888275,0.00019999,2]
[387147160,1758592254153,-365.37111725,0.00019999,2]
[387147161,1758592254164,-500.0,0.00019999,2]
[387147162,1758592254173,-500.0,0.00019999,2]
[387147163,1758592254183,-400.0,0.00019999,2]
[387147164,1758592254193,-717.63,0.00019999,2]
[387147165,1758592254202,-400.0,0.00019999,2]
[387147166,1758592254212,-400.0,0.00019999,2]
[387147167,1758592254221,-451.98,0.00019999,2]
[387147168,1758592254433,-400.0,0.00019999,2]
[387147169,1758592254460,-1415.07,0.00019999,2]
[387147170,1758592254470,-1045.91604589,0.00019999,2]
[387147171,1758592254483,-369.15395411,0.00019999,2]
[387147172,1758592254493,-118.65935893,0.00019999,2]
[387147173,1758592254564,-557.18802301,0.00019999,2]
[387147174,1758592254576,-297.7262798,0.00019999,2]
[387147175,1758592254590,-441.49633826,0.00019999,2]
[387147176,1758592254599,-241.10889358,0.00019999,2]
[387147177,1758592254611,-436.51110642,0.00019999,2]
[387147178,1758592254621,-479.17466408,0.00019999,2]
[387147179,1758592254638,-36.40533592,0.00019999,2]
[387147180,1758592254649,-541.45,0.00019999,2]
[387147181,1758592254659,-360.63775204,0.00019999,2]
[387147182,1758592254679,-180.81224796,0.00019999,2]
[387147183,1758592254689,-219.18775204,0.00019999,2]
[387147184,1758592254700,-322.26224796,0.00019999,2]
[387147185,1758592254709,-541.45,0.00019999,2]
[387147186,1758592254719,-500.0,0.00019999,2]
[387147187,1758592254728,-390.28775204,0.00019999,2]
[387147188,1758592254739,-151.16224796,0.00019999,2]
[387147189,1758592254749,-500.0,0.00019999,2]
[387147190,1758592254758,-213.08563107,0.00019999,2]
[387147191,1758592254776,-186.91436893,0.00019999,2]
[387147192,1758592254786,-401.86065571,0.00019999,2]
[387147193,1758592255266,-100.14934429,0.00019999,2]
[387147194,1758592255276,-502.01,0.00019999,2]
[387147195,1758592255286,-502.01,0.00019999,2]
[387147196,1758592255296,-502.01,0.00019999,2]
[387147197,1758592255305,-502.01,0.00019999,2]
[387147198,1758592255315,-500.0,0.00019999,2]
[387147199,1758592255324,-500.0,0.00019999,2]
[387147200,1758592255334,-167.47987155,0.00019999,2]
[387147201,1758592255348,-332.52012845,0.00019999,2]
[387147202,1758592255358,-500.0,0.00019999,2]
[387147203,1758592255367,-500.0,0.00019999,2]
[387147204,1758592255377,-500.0,0.00019999,2]
[387147205,1758592255386,-500.0,0.00019999,2]
[387147206,1758592255396,-36.09055888,0.00019999,2]
[387147207,1758592255408,-463.90944112,0.00019999,2]
[387147208,1758592255418,-500.0,0.00019999,2]
[387147209,1758592255427,-500.0,0.00019999,2]
[387147210,1758592255439,-500.0,0.00019999,2]
[387147211,1758592255448,-500.0,0.00019999,2]
[387147212,1758592255458,-21011.85620285,0.0002,2]
[387147213,1758592255470,-1217.47124349,0.0002,2]
[387147214,1758592255482,-411.76189682,0.0002,2]
[387147215,1758592255494,-319.25516501,0.0002,2]
[387147216,1758592255506,-2288.61125179,0.0002,2]
[387147217,1758592255517,-716.73120004,0.0002,2]
[387147218,1758592255529,-722.81393466,0.0002,2]
[387147219,1758592255541,-23407.0,0.0002,2]
[387147220,1758592255552,-66657.64910273,0.0002,2]
[387147221,1758592255564,-25186.3396482,0.0002,2]
[387147222,1758592256442,-403.22031932,0.00019992,2]
[387147223,1758592256452,-500.0,0.00019993,2]
[387147224,1758592256462,-500.0,0.00019998,2]
[387147225,1758592256472,-217.61,0.00019999,2]
[387147226,1758592256481,-120659.89572841,0.0002,2]
[387147227,1758592256501,-462.68269843,0.0002,2]
[387147228,1758592256516,-1385.8385,0.0002,2]
[387147229,1758592256527,-6633.69571503,0.0002,2]
[387147230,1758592359807,185.5,9.548e-05,2]
[387147231,1758592414542,1500.0,0.00030137,120]
[387147232,1758592424240,1500.0,0.00030137,120]
[387147233,1758592438268,2500.0,0.00030137,120]
[387147234,1758592444442,2500.0,0.00030137,120]
[387147236,1758592453269,2500.0,0.00030137,120]
[387147237,1758592464951,2614.0,0.00030137,120]
[387147238,1758592523733,35242.04,0.00030136,120]
[387147239,1758592640183,150.0,0.00019008,7]
[387147240,1758592755763,281.06488272,0.0003,120]
[387147248,1758592979488,150.0,0.000182,2]
[387147250,1758593009171,325.31339613,0.000301,120]
[387147263,1758593332215,-36829.7318888,0.00018938,2]
[387147264,1758593358630,964.52857,0.0003013,120]
[387147265,1758593380657,409.1,0.00030137,120]
[387147271,1758593432247,-300.0,0.00018937,2]
[387147272,1758593432258,-117.61925528,0.00018937,2]
[387147273,1758593432275,-182.38074472,0.00018937,2]
[387147274,1758593432284,-176.0,0.00018937,2]
[387147275,1758593432295,-1200.0,0.00018937,2]
[387147276,1758593432305,-300.0,0.00018937,2]
[387147277,1758593432314,-28219.70488077,0.00018938,2]
[387147278,1758593432514,-164633.80912243,0.00018938,2]
[387147279,1758593432524,-168.72,0.00018938,2]
[387147280,1758593432534,-666.0,0.00018951,3]
[387147281,1758593432543,-288.81,0.00018951,2]
[387147282,1758593432553,-250.0,0.0001896,2]
[387147283,1758593432563,-2000.0,0.00018971,3]
[387147285,1758593432572,-250.0,0.00018971,2]
[387147287,1758593432582,-939.92249824,0.00018973,2]
[387147289,1758593432591,-1436.33,0.0001898,2]
[387147291,1758593432600,-5259.41,0.0001899,2]
[387147293,1758593432611,-150.0,0.00019073,2]
[387147295,1758593432621,-500.0,0.00019073,2]
[387147296,1758593432630,-150.0,0.0001938,2]
[387147298,1758593432639,-283.84263029,0.00019451,2]
[387147300,1758593432648,-200.0,0.000196,7]
[387147302,1758593432657,-150.0,0.000197,2]
[387147304,1758593432667,-500.0,0.000197,7]
[387147306,1758593432678,-298.78760715,0.00019777,2]
[387147308,1758593432688,-800.0,0.000198,7]
[387147310,1758593432699,-2500.0,0.00019891,2]
[387147313,1758593432710,-5000.0,0.00019891,2]
[387147315,1758593432720,-6438.33683669,0.00019891,2]
[387147317,1758593432730,-204.28928625,0.00019891,2]
[387147319,1758593432740,-159.80547977,0.00019892,3]
[387147321,1758593432751,-341.4705,0.00019894,2]
[387147322,1758593432761,-1000.0,0.00019894,2]
[387147324,1758593432770,-5637.12044576,0.00019899,2]
[387147326,1758593432780,-527.87,0.00019899,2]
[387147328,1758593432789,-400.0,0.00019899,2]
[387147330,1758593432799,-400.0,0.00019899,2]
[387147332,1758593432808,-400.0,0.00019899,2]
[387147334,1758593432818,-388.0,0.00019899,2]
[387147337,1758593432828,-400.0,0.00019899,2]
[387147339,1758593432837,-400.0,0.00019899,2]
[387147341,1758593432846,-18307.35,0.000199,2]
[387147342,1758593432855,-163.72434708,0.000199,2]
[387147345,1758593432865,-662.28891334,0.000199,2]
[387147346,1758593432874,-1100.0,0.000199,7]
[387147348,1758593432883,-1036.42086708,0.00019927,2]
[387147350,1758593432896,-301.71022371,0.00019973,2]
[387147352,1758593432907,-506.42520267,0.00019973,2]
[387147354,1758593432916,-500.0,0.00019973,2]
[387147356,1758593432925,-500.0,0.00019973,2]
[387147358,1758593432934,-502.67291216,0.00019973,2]
[387147360,1758593432944,-1436.33,0.00019979,2]
[387147362,1758593432953,-1391.71,0.00019979,2]
[387147364,1758593432963,-506.57084327,0.0001998,2]
[387147366,1758593432972,-1436.33,0.0001998,2]
[387147368,1758593432981,-1436.33,0.00019981,2]
[387147370,1758593432991,-1436.33,0.00019981,2]
[387147371,1758593433001,-442.99243793,0.00019989,2]
[387147372,1758593433011,-500.0,0.00019989,2]
[387147373,1758593433020,-366.47030113,0.00019989,2]
[387147374,1758593433287,-500.0,0.00019989,2]
[387147375,1758593433298,-588.92961473,0.00019989,2]
[387147376,1758593433308,-400.0,0.0001999,2]
[387147377,1758593433318,-400.0,0.0001999,2]
[387147378,1758593433327,-400.0,0.0001999,2]
[387147379,1758593433337,-400.0,0.0001999,2]
[387147380,1758593433346,-400.0,0.0001999,2]
[387147381,1758593433356,-400.0,0.0001999,2]
[387147382,1758593433365,-415.18533363,0.0001999,2]
[387147383,1758593433375,-400.0,0.0001999,2]
[387147384,1758593433384,-400.0,0.0001999,2]
[387147385,1758593433395,-400.87019368,0.0001999,2]
[387147386,1758593433404,-401.45293791,0.0001999,2]
[387147387,1758593433415,-400.0,0.0001999,2]
[387147388,1758593433425,-400.0,0.0001999,2]
[387147389,1758593433435,-400.0,0.0001999,2]
[387147390,1758593433445,-500.0,0.0001999,2]
[387147391,1758593433456,-400.0,0.0001999,2]
[387147392,1758593433465,-318.05451065,0.0001999,2]
[387147393,1758593433483,-400.0,0.0001999,2]
[387147394,1758593433492,-400.0,0.0001999,2]
[387147395,1758593433503,-400.0,0.0001999,2]
[387147396,1758593433512,-400.0,0.0001999,2]
[387147397,1758593433522,-400.0,0.0001999,2]
[387147398,1758593433532,-400.0,0.0001999,2]
[387147399,1758593433541,-400.0,0.0001999,2]
[387147400,1758593433551,-400.0,0.0001999,2]
[387147401,1758593433561,-400.0,0.0001999,2]
[387147402,1758593433570,-400.0,0.0001999,2]
[387147403,1758593433580,-400.0,0.0001999,2]
[387147404,1758593433589,-400.0,0.0001999,2]
[387147405,1758593433598,-400.0,0.0001999,2]
[387147406,1758593433608,-397.78832245,0.0001999,2]
[387147407,1758593433618,-400.0,0.0001999,2]
[387147408,1758593433628,-400.0,0.0001999,2]
[387147409,1758593433637,-400.0,0.0001999,2]
[387147410,1758593433646,-400.0,0.0001999,2]
[387147411,1758593433656,-400.0,0.0001999,2]
[387147412,1758593433666,-400.0,0.0001999,2]
[387147413,1758593433676,-400.0,0.0001999,2]
[387147414,1758593433686,-401.07816514,0.0001999,2]
[387147415,1758593433696,-400.0,0.0001999,2]
[387147416,1758593433706,-414.06436531,0.0001999,2]
[387147417,1758593433716,-400.0,0.0001999,2]
[387147418,1758593433727,-400.0,0.0001999,2]
[387147419,1758593433736,-400.0,0.0001999,2]
[387147420,1758593433746,-400.0,0.0001999,2]
[387147421,1758593433757,-401.88951966,0.0001999,2]
[387147422,1758593433768,-400.0,0.0001999,2]
[387147423,1758593433778,-582.32,0.0001999,2]
[387147424,1758593433788,-401.34265934,0.0001999,2]
[387147425,1758593433798,-400.0,0.0001999,2]
[387147426,1758593433808,-651.38,0.0001999,2]
[387147427,1758593433818,-402.26858726,0.0001999,2]
[387147428,1758593433828,-400.0,0.0001999,2]
[387147429,1758593433838,-246.144514,0.0001999,2]
[387147430,1758593433848,-199.53985158,0.0001999,2]
[387147431,1758593433858,-508.87049503,0.0001999,2]
[387147432,1758593433869,-185.32182184,0.0001999,2]
[387147433,1758593433879,-150.998959,0.0001999,2]
[387147434,1758593433889,-566.23,0.0001999,2]
[387147435,1758593433898,-318.978464,0.0001999,2]
[387147436,1758593433907,-400.0,0.0001999,2]
[387147437,1758593433917,-400.0,0.0001999,2]
[387147438,1758593433926,-745.57,0.0001999,2]
[387147439,1758593433936,-400.0,0.0001999,2]
[387147440,1758593433946,-400.0,0.0001999,2]
[387147441,1758593433956,-626.43,0.0001999,2]
[387147442,1758593433965,-617.27,0.0001999,2]
[387147443,1758593433975,-400.0,0.0001999,2]
[387147444,1758593433984,-400.0,0.0001999,2]
[387147445,1758593433993,-400.0,0.0001999,2]
[387147446,1758593434003,-400.0,0.0001999,2]
[387147447,1758593434013,-400.0,0.0001999,2]
[387147448,1758593434023,-761.07,0.0001999,2]
[387147449,1758593434032,-400.0,0.0001999,2]
[387147450,1758593434042,-400.0,0.0001999,2]
[387147451,1758593434052,-400.0,0.0001999,2]
[387147452,1758593434061,-604.29,0.0001999,2]
[387147453,1758593434070,-112.77746268,0.0001999,2]
[387147459,1758593438328,-4584.21756915,0.00019878,2]
[387147460,1758593438340,-408.15183489,0.00019878,2]
[387147465,1758593440424,-8497.32661016,0.00019878,2]
[387147466,1758593440434,-400.0,0.00019899,2]
[387147467,1758593440443,-290.74444255,0.0001999,2]
[387147468,1758593440452,-400.0,0.0001999,2]
[387147469,1758593440461,-400.0,0.0001999,2]
[387147470,1758593440470,-400.0,0.0001999,2]
[387147471,1758593440479,-400.0,0.0001999,2]
[387147472,1758593440488,-400.0,0.0001999,2]
[387147473,1758593440498,-400.0,0.0001999,2]
[387147474,1758593440507,-1036.18,0.0001999,2]
[387147475,1758593440516,-400.0,0.0001999,2]
[387147476,1758593440526,-400.0,0.0001999,2]
[387147477,1758593440535,-400.0,0.0001999,2]
[387147478,1758593440545,-2889.46,0.0001999,2]
[387147479,1758593440555,-463.17,0.0001999,2]
[387147480,1758593440565,-400.0,0.0001999,2]
[387147481,1758593440574,-400.0,0.0001999,2]
[387147482,1758593440584,-556.52,0.0001999,2]
[387147483,1758593440594,-400.0,0.0001999,2]
[387147484,1758593440604,-406.46,0.0001999,2]
[387147485,1758593440613,-400.0,0.0001999,2]
[387147486,1758593440623,-401.42760067,0.0001999,2]
[387147487,1758593440632,-400.0,0.0001999,2]
[387147488,1758593440642,-401.84527137,0.0001999,2]
[387147489,1758593440652,-400.0,0.0001999,2]
[387147490,1758593440661,-400.0,0.0001999,2]
[387147491,1758593440671,-2009.22,0.0001999,2]
[387147492,1758593440680,-401.93638826,0.0001999,2]
[387147493,1758593440690,-400.0,0.0001999,2]
[387147494,1758593440699,-400.0,0.0001999,2]
[387147495,1758593440709,-916.24,0.0001999,2]
[387147496,1758593440718,-859.31,0.0001999,2]
[387147497,1758593440728,-400.0,0.0001999,2]
[387147498,1758593440738,-450.65,0.0001999,2]
[387147499,1758593440747,-400.0,0.0001999,2]
[387147500,1758593440759,-407.90283893,0.0001999,2]
[387147501,1758593440769,-818.45,0.0001999,2]
[387147502,1758593440779,-400.0,0.0001999,2]
[387147503,1758593440788,-832.5,0.0001999,2]
[387147504,1758593440798,-400.0,0.0001999,2]
[387147506,1758593440808,-400.0,0.0001999,2]
[387147507,1758593440817,-403.13377821,0.0001999,2]
[387147509,1758593440827,-960.25,0.0001999,2]
[387147511,1758593440836,-400.0,0.0001999,2]
[387147513,1758593440846,-400.0,0.0001999,2]
[387147515,1758593440856,-400.0,0.0001999,2]
[387147516,1758593440865,-400.0,0.0001999,2]
[387147517,1758593440875,-400.0,0.0001999,2]
[387147518,1758593440884,-400.0,0.0001999,2]
[387147519,1758593440893,-403.7768183,0.0001999,2]
[387147520,1758593440903,-400.0,0.0001999,2]
[387147521,1758593440912,-400.0,0.0001999,2]
[387147522,1758593440921,-400.0,0.0001999,2]
[387147523,1758593440931,-400.0,0.0001999,2]
[387147524,1758593440940,-647.68,0.0001999,2]
[387147525,1758593440949,-400.0,0.0001999,2]
[387147526,1758593440958,-576.48,0.0001999,2]
[387147527,1758593440968,-400.0,0.0001999,2]
[387147528,1758593440977,-976.59,0.0001999,2]
[387147529,1758593440986,-400.0,0.0001999,2]
[387147530,1758593440996,-400.0,0.0001999,2]
[387147531,1758593441006,-1102.84,0.0001999,2]
[387147532,1758593441019,-893.3,0.0001999,2]
[387147533,1758593441029,-499.38,0.0001999,2]
[387147534,1758593441039,-878.85,0.0001999,2]
[387147535,1758593441049,-400.0,0.0001999,2]
[387147536,1758593441058,-400.0,0.0001999,2]
[387147537,1758593441067,-400.0,0.0001999,2]
[387147538,1758593441077,-400.0,0.0001999,2]
[387147539,1758593441086,-685.4,0.0001999,2]
[387147540,1758593441095,-400.0,0.0001999,2]
[387147541,1758593441104,-706.94,0.0001999,2]
[387147542,1758593441114,-400.0,0.0001999,2]
[387147543,1758593441123,-400.0,0.0001999,2]
[387147544,1758593441133,-500.0,0.0001999,2]
[387147545,1758593441143,-177.561787,0.0001999,2]
[387147546,1758593441153,-519.95,0.0001999,2]
[387147547,1758593441163,-400.0,0.0001999,2]
[387147548,1758593441173,-171.618161,0.0001999,2]
[387147549,1758593441182,-400.0,0.0001999,2]
[387147550,1758593441192,-400.0,0.0001999,2]
[387147551,1758593441201,-400.0,0.0001999,2]
[387147552,1758593441211,-500.0,0.0001999,2]
[387147553,1758593441220,-2096.35,0.0001999,2]
[387147554,1758593441234,-402.9836763,0.0001999,2]
[387147555,1758593441244,-572.11,0.0001999,2]
[387147556,1758593441254,-402.39724024,0.0001999,2]
[387147557,1758593441267,-400.0,0.0001999,2]
[387147558,1758593441277,-517.59,0.0001999,2]
[387147559,1758593441287,-400.0,0.0001999,2]
[387147560,1758593441296,-400.0,0.0001999,2]
[387147561,1758593441307,-400.0,0.0001999,2]
[387147562,1758593441317,-472.75,0.0001999,2]
[387147563,1758593441326,-400.0,0.0001999,2]
[387147564,1758593441336,-400.0,0.0001999,2]
[387147565,1758593441345,-400.0,0.0001999,2]
[387147566,1758593441354,-981.6,0.0001999,2]
[387147567,1758593441363,-400.0,0.0001999,2]
[387147568,1758593441372,-400.0,0.0001999,2]
[387147569,1758593441382,-400.0,0.0001999,2]
[387147570,1758593441392,-400.0,0.0001999,2]
[387147571,1758593441403,-400.0,0.0001999,2]
[387147572,1758593441412,-500.0,0.0001999,2]
[387147573,1758593441422,-500.0,0.0001999,2]
[387147574,1758593441431,-400.0,0.0001999,2]
[387147575,1758593441441,-500.0,0.0001999,2]
[387147576,1758593441450,-400.0,0.0001999,2]
[387147577,1758593441460,-400.0,0.0001999,2]
[387147578,1758593441470,-400.0,0.0001999,2]
[387147579,1758593441479,-581.88,0.0001999,2]
[387147580,1758593441488,-1333.31,0.0001999,2]
[387147581,1758593441498,-400.0,0.0001999,2]
[387147582,1758593441507,-150.0,0.0001999,2]
[387147583,1758593441516,-150.0,0.0001999,2]
[387147584,1758593441526,-1916.66,0.0001999,2]
[387147585,1758593441535,-796.7,0.0001999,2]
[387147586,1758593441544,-150.0,0.0001999,2]
[387147587,1758593441554,-153.09300487,0.0001999,2]
[387147588,1758593441563,-500.0,0.0001999,2]
[387147589,1758593441572,-630.0,0.0001999,2]
[387147590,1758593441582,-562.22,0.0001999,2]
[387147591,1758593441591,-2125.36,0.0001999,2]
[387147592,1758593441601,-400.0,0.0001999,2]
[387147593,1758593441610,-400.0,0.0001999,2]
[387147594,1758593441619,-502.13,0.0001999,2]
[387147595,1758593441629,-847.43,0.0001999,2]
[387147596,1758593441873,-592.49,0.0001999,2]
[387147597,1758593441883,-400.0,0.00019991,2]
[387147598,1758593441893,-418.48675921,0.00019991,2]
[387147599,1758593441903,-400.0,0.00019991,2]
[387147600,1758593441913,-400.0,0.00019991,2]
[387147601,1758593441923,-400.0,0.00019991,2]
[387147602,1758593441932,-400.0,0.00019991,2]
[387147603,1758593441941,-400.0,0.00019991,2]
[387147604,1758593441952,-400.0,0.00019991,2]
[387147605,1758593441961,-400.0,0.00019991,2]
[387147606,1758593441970,-400.0,0.00019991,2]
[387147607,1758593441980,-400.0,0.00019991,2]
[387147608,1758593441990,-400.0,0.00019991,2]
[387147609,1758593441999,-400.0,0.00019991,2]
[387147610,1758593442010,-400.0,0.00019991,2]
[387147611,1758593442020,-400.0,0.00019991,2]
[387147612,1758593442029,-400.0,0.00019991,2]
[387147613,1758593442039,-500.0,0.00019991,2]
[387147614,1758593442049,-406.33944931,0.00019991,2]
[387147615,1758593442059,-400.0,0.00019991,2]
[387147616,1758593442068,-400.0,0.00019991,2]
[387147617,1758593442078,-400.0,0.00019991,2]
[387147618,1758593442087,-400.0,0.00019991,2]
[387147619,1758593442097,-400.0,0.00019991,2]
[387147620,1758593442107,-400.0,0.00019991,2]
[387147621,1758593442116,-400.0,0.00019991,2]
[387147622,1758593442126,-400.0,0.00019991,2]
[387147623,1758593442136,-400.0,0.00019991,2]
[387147624,1758593442145,-400.0,0.00019991,2]
[387147625,1758593442155,-400.0,0.00019991,2]
[387147626,1758593442164,-400.0,0.00019991,2]
[387147627,1758593442174,-400.0,0.00019991,2]
[387147628,1758593442184,-400.0,0.00019991,2]
[387147629,1758593442195,-400.0,0.00019991,2]
[387147630,1758593442205,-400.0,0.00019991,2]
[387147631,1758593442214,-400.0,0.00019991,2]
[387147632,1758593442224,-405.41455092,0.00019991,2]
[387147633,1758593442237,-400.0,0.00019991,2]
[387147634,1758593442248,-400.0,0.00019991,2]
[387147635,1758593442260,-400.0,0.00019991,2]
[387147636,1758593442270,-400.0,0.00019991,2]
[387147637,1758593442280,-400.0,0.00019991,2]
[387147638,1758593442289,-403.23276409,0.00019991,2]
[387147639,1758593442300,-400.0,0.00019991,2]
[387147640,1758593442311,-403.83925861,0.00019991,2]
[387147641,1758593442320,-400.0,0.00019991,2]
[387147642,1758593442329,-406.88400596,0.00019991,2]
[387147643,1758593442339,-400.0,0.00019991,2]
[387147644,1758593442348,-406.56173324,0.00019991,2]
[387147645,1758593442358,-400.0,0.00019991,2]
[387147646,1758593442368,-400.0,0.00019991,2]
[387147647,1758593442378,-400.0,0.00019991,2]
[387147648,1758593442388,-401.97906018,0.00019991,2]
[387147649,1758593442397,-400.0,0.00019991,2]
[387147650,1758593442406,-519.01294758,0.00019991,2]
[387147651,1758593442415,-401.70702291,0.00019991,2]
[387147652,1758593442424,-400.0,0.00019991,2]
[387147653,1758593442434,-422.6760808,0.00019991,2]
[387147654,1758593442443,-400.0,0.00019991,2]
[387147655,1758593442452,-400.0,0.00019991,2]
[387147656,1758593442461,-400.0,0.00019991,2]
[387147657,1758593442470,-400.0,0.00019991,2]
[387147658,1758593442479,-400.0,0.00019991,2]
[387147659,1758593442488,-400.0,0.00019991,2]
[387147660,1758593442498,-400.0,0.00019991,2]
[387147661,1758593442507,-400.0,0.00019991,2]
[387147662,1758593442517,-400.0,0.00019991,2]
[387147663,1758593442526,-405.89859686,0.00019991,2]
[387147664,1758593442535,-400.0,0.00019991,2]
[387147665,1758593442545,-400.0,0.00019991,2]
[387147666,1758593442555,-400.0,0.00019991,2]
[387147667,1758593442564,-400.0,0.00019991,2]
[387147668,1758593442574,-400.0,0.00019991,2]
[387147669,1758593442583,-400.0,0.00019991,2]
[387147670,1758593442592,-400.0,0.00019991,2]
[387147671,1758593442601,-400.0,0.00019991,2]
[387147672,1758593442610,-407.96321996,0.00019991,2]
[387147673,1758593442619,-400.0,0.00019991,2]
[387147674,1758593442629,-400.0,0.00019991,2]
[387147675,1758593442638,-402.92588695,0.00019991,2]
[387147676,1758593442650,-400.0,0.00019991,2]
[387147677,1758593442659,-400.0,0.00019991,2]
[387147678,1758593442669,-400.0,0.00019991,2]
[387147679,1758593442679,-400.0,0.00019991,2]
[387147680,1758593442688,-400.0,0.00019991,2]
[387147681,1758593442698,-400.0,0.00019991,2]
[387147682,1758593442708,-400.0,0.00019991,2]
[387147683,1758593442717,-400.0,0.00019991,2]
[387147684,1758593442726,-400.0,0.00019991,2]
[387147685,1758593442736,-400.0,0.00019991,2]
[387147686,1758593442745,-400.0,0.00019991,2]
[387147687,1758593442755,-400.0,0.00019991,2]
[387147688,1758593442765,-400.0,0.00019991,2]
[387147689,1758593442775,-400.0,0.00019991,2]
[387147690,1758593442784,-400.0,0.00019991,2]
[387147691,1758593442794,-400.0,0.00019991,2]
[387147692,1758593442803,-400.0,0.00019991,2]
[387147693,1758593442813,-400.0,0.00019991,2]
[387147694,1758593442824,-154.60549381,0.00019991,2]
[387147695,1758593442833,-202.77761172,0.00019991,2]
[387147696,1758593442843,-400.0,0.00019991,2]
[387147697,1758593442852,-400.0,0.00019991,2]
[387147698,1758593442862,-400.0,0.00019991,2]
[387147699,1758593442871,-400.0,0.00019991,2]
[387147700,1758593442881,-400.0,0.00019991,2]
[387147701,1758593442891,-400.0,0.00019991,2]
[387147702,1758593442901,-167.468045,0.00019991,2]
[387147703,1758593442910,-400.0,0.00019991,2]
[387147704,1758593442919,-400.0,0.00019991,2]
[387147705,1758593442929,-443.38324306,0.00019991,2]
[387147707,1758593442939,-400.0,0.00019991,2]
[387147709,1758593442948,-400.0,0.00019991,2]
[387147711,1758593442958,-400.0,0.00019991,2]
[387147712,1758593442967,-400.0,0.00019991,2]
[387147713,1758593442976,-400.0,0.00019991,2]
[387147714,1758593442985,-400.0,0.00019991,2]
[387147715,1758593442995,-402.44310335,0.00019991,2]
[387147717,1758593443004,-500.0,0.00019991,2]
[387147718,1758593443015,-400.0,0.00019991,2]
[387147719,1758593443024,-402.20072661,0.00019991,2]
[387147720,1758593443033,-400.0,0.00019991,2]
[387147721,1758593443043,-400.0,0.00019991,2]
[387147722,1758593443052,-400.0,0.00019991,2]
[387147723,1758593443062,-429.26,0.00019991,2]
[387147724,1758593443071,-400.0,0.00019991,2]
[387147725,1758593443080,-400.0,0.00019991,2]
[387147726,1758593443090,-400.0,0.00019991,2]
[387147727,1758593443099,-400.56540432,0.00019991,2]
[387147728,1758593443108,-400.0,0.00019991,2]
[387147729,1758593443118,-400.0,0.00019991,2]
[387147730,1758593443127,-400.0,0.00019991,2]
[387147732,1758593443137,-400.0,0.00019991,2]
[387147734,1758593443146,-400.0,0.00019991,2]